bitfinex/quotes_BTCUSD_20250226
["timestamp","ask_amount","ask_price","bid_price","bid_amount"]
[1740599816912,0.0319,84445.0,84444.0,0.00041352]
[1740599817121,0.0269,84445.0,84444.0,0.00041352]
[1740599817320,0.0319,84445.0,84444.0,0.00041352]
[1740599817702,0.0269,84445.0,84444.0,0.00041352]
[1740599818130,0.0319,84445.0,84444.0,0.00041352]
[1740599818343,0.03343656,84445.0,84444.0,0.00041352]
[1740599818525,0.02643656,84445.0,84444.0,0.00041352]
[1740599819530,0.03343656,84445.0,84444.0,0.00041352]
[1740599819694,0.03843656,84445.0,84444.0,0.00041352]
[1740599819889,0.03343656,84445.0,84444.0,0.00041352]
[1740599820306,0.03843656,84445.0,84444.0,0.00041352]
[1740599820535,0.01853656,84445.0,84444.0,0.00041352]
[1740599820877,0.03343656,84445.0,84444.0,0.00041352]
[1740599821006,0.51823454,84445.0,84444.0,0.00041352]
[1740599821354,0.46679356,84445.0,84444.0,0.00041352]
[1740599821499,0.44013656,84445.0,84444.0,0.00041352]
[1740599821698,0.44013656,84445.0,84440.0,0.0001]
[1740599821699,0.0399,84441.0,84440.0,0.0001]
[1740599822014,0.39488631,84441.0,84440.0,0.0001]
[1740599822211,0.39322918,84441.0,84440.0,0.0001]
[1740599822411,0.02,84435.0,84430.0,0.0001409]
[1740599822622,0.05444085,84431.0,84430.0,0.0001409]
[1740599822965,0.03444085,84421.0,84418.0,0.0008456]
[1740599823119,0.31808467,84421.0,84418.0,0.0008456]
[1740599823328,0.36995885,84421.0,84418.0,0.0008456]
[1740599823719,0.35005885,84421.0,84418.0,0.0008456]
[1740599823921,0.31808467,84421.0,84418.0,0.0008456]
[1740599824144,0.33798467,84421.0,84418.0,0.0008456]
[1740599824366,0.32508467,84421.0,84420.0,1.09382221]
[1740599824529,0.31808467,84432.0,84421.0,0.3]
[1740599824725,0.0199,84424.0,84423.0,0.3]
[1740599825147,0.0199,84423.0,84422.0,0.23892221]
[1740599825350,0.31808467,84423.0,84422.0,0.23892221]
[1740599825772,0.31808467,84423.0,84420.0,0.0001]
[1740599826009,0.00165713,84422.0,84420.0,0.0001]
[1740599826394,0.004,84421.0,84420.0,0.0001]
[1740599826792,0.00565713,84421.0,84420.0,0.0001]
[1740599826998,0.03990823,84421.0,84420.0,0.0001]
[1740599827194,0.03590823,84421.0,84420.0,0.0001]
[1740599827553,0.05044908,84421.0,84420.0,0.0011]
[1740599827755,0.05044908,84421.0,84420.0,0.0001]
[1740599827962,0.04879195,84421.0,84420.0,0.0001]
[1740599828707,0.007,84421.0,84420.0,0.0001]
[1740599829081,0.007,84421.0,84420.0,0.0011]
[1740599829082,0.014,84421.0,84420.0,0.0011]
[1740599829281,0.02674749,84421.0,84420.0,0.0001]
[1740599829497,0.04128834,84421.0,84420.0,0.0001]
[1740599829707,0.04828834,84421.0,84420.0,0.0011]
[1740599829919,0.07891146,84421.0,84420.0,0.0011]
[1740599830122,0.06394152,84421.0,84420.0,0.0011]
[1740599830639,0.04633332,84421.0,84420.0,0.0011]
[1740599832791,0.05109232,84421.0,84420.0,0.0011]
[1740599833416,0.35109232,84421.0,84420.0,0.0011]
[1740599834236,0.66931861,84421.0,84420.0,0.0011]
[1740599834442,0.72910945,84421.0,84420.0,0.0011]
[1740599835202,0.01454085,84418.0,84400.0,0.0001]
[1740599835401,0.05908843,84415.0,84400.0,0.0001]
[1740599835641,0.01454085,84414.0,84400.0,0.0001]
[1740599835854,0.01454085,84412.0,84400.0,0.0001]
[1740599836065,0.31454085,84411.0,84400.0,0.0001]
[1740599836273,0.37396275,84411.0,84400.0,0.0001]
[1740599836485,0.44168837,84411.0,84410.0,0.00125906]
[1740599836889,0.44168837,84411.0,84410.0,0.00225906]
[1740599837126,0.44168837,84411.0,84410.0,0.00125906]
[1740599837364,0.43314752,84411.0,84410.0,0.00125906]
[1740599837712,0.43314752,84411.0,84410.0,0.00225906]
[1740599838154,0.43314752,84411.0,84410.0,0.00125906]
[1740599838639,0.43314752,84411.0,84410.0,0.00225906]
[1740599838640,0.14014752,84411.0,84410.0,0.00225906]
[1740599838850,0.0724219,84411.0,84410.0,0.00225906]
[1740599839620,0.013,84411.0,84410.0,0.00225906]
[1740599840033,0.013,84411.0,84410.0,0.24118127]
[1740599840231,0.013,84411.0,84410.0,0.28118127]
[1740599840397,0.006,84411.0,84410.0,0.28018127]
[1740599840593,0.32691836,84433.0,84410.0,0.28018127]
[1740599840818,0.05,84425.0,84411.0,0.08769753]
[1740599841093,0.32691836,84433.0,84410.0,0.24118127]
[1740599841274,0.32691836,84433.0,84410.0,0.00125906]
[1740599841433,0.01454085,84430.0,84410.0,0.00225906]
[1740599841631,0.007,84411.0,84410.0,0.00225906]
[1740599841867,0.33391836,84411.0,84410.0,0.00225906]
[1740599842081,0.3603102,84411.0,84410.0,0.00125906]
[1740599842261,0.3603102,84411.0,84410.0,0.00225906]
[1740599842467,0.3603102,84411.0,84410.0,0.00625906]
[1740599842783,0.3603102,84411.0,84410.0,0.00225906]
[1740599842983,0.3643102,84411.0,84410.0,0.00225906]
[1740599843649,0.3643102,84411.0,84410.0,0.00125906]
[1740599843846,0.3713102,84411.0,84410.0,0.00225906]
[1740599844354,0.6713102,84411.0,84410.0,0.00225906]
[1740599845978,0.6713102,84411.0,84410.0,3.096e-05]
[1740599846377,0.3,84410.0,84393.0,0.23892221]
[1740599846583,0.3,84410.0,84400.0,0.00022408]
[1740599846584,0.07070042,84409.0,84400.0,0.00022408]
[1740599846988,0.01454085,84407.0,84400.0,0.00022408]
[1740599847190,0.01454085,84405.0,84400.0,0.00022408]
[1740599847619,0.01454085,84402.0,84400.0,0.00022408]
[1740599847820,0.39058756,84401.0,84400.0,0.00022408]
[1740599847999,0.37604671,84401.0,84400.0,0.00022408]
[1740599848180,0.39058756,84401.0,84400.0,0.00022408]
[1740599848608,0.718103,84401.0,84400.0,0.00022408]
[1740599848800,0.718103,84401.0,84400.0,0.00088377]
[1740599849034,0.694273,84401.0,84400.0,0.00088377]
[1740599849622,0.39983247,84401.0,84400.0,0.00088377]
[1740599849846,0.01454085,84400.0,84382.0,0.0001]
[1740599850145,0.36617794,84401.0,84382.0,0.0001]
[1740599850146,0.01454085,84398.0,84382.0,0.00022413]
[1740599850601,0.01454085,84394.0,84382.0,0.00022413]
[1740599850803,0.01454085,84392.0,84382.0,0.00022413]
[1740599851011,0.01454085,84388.0,84382.0,0.00022413]
[1740599851219,0.07451569,84386.0,84336.0,0.0008452]
[1740599851418,0.07429475,84384.0,84336.0,0.0008452]
[1740599851826,0.05922424,84381.0,84336.0,0.0008452]
[1740599852038,0.01454085,84378.0,84336.0,0.0008452]
[1740599852243,0.37429093,84376.0,84336.0,0.0008452]
[1740599853548,0.38129093,84376.0,84336.0,0.0008452]
[1740599855247,0.37429093,84376.0,84336.0,0.0008452]
[1740599855586,0.31454085,84374.0,84336.0,0.0008452]
[1740599855764,0.01454085,84372.0,84336.0,0.0008452]
[1740599856084,0.01454085,84368.0,84336.0,0.0008452]
[1740599856416,0.01454085,84365.0,84336.0,0.0008452]
[1740599856565,0.01454085,84363.0,84336.0,0.0008452]
[1740599856771,0.01454085,84361.0,84336.0,0.0008452]
[1740599856953,0.04793269,84360.0,84336.0,0.0008452]
[1740599857469,0.40785614,84360.0,84336.0,0.0008452]
[1740599858031,0.40785614,84360.0,84359.0,0.000345]
[1740599858225,0.05907631,84358.0,84336.0,0.0008452]
[1740599858365,0.05952947,84354.0,84347.0,0.00097073]
[1740599858568,0.01454085,84351.0,84347.0,0.00097073]
[1740599858785,0.01454085,84348.0,84347.0,0.00097073]
[1740599859304,0.01930485,84348.0,84347.0,0.00097073]
[1740599860227,0.07900577,84348.0,84347.0,0.00097073]
[1740599860366,0.07900577,84348.0,84336.0,0.0008452]
[1740599860367,0.05976755,84347.0,84336.0,0.0008452]
[1740599860567,0.05976755,84347.0,84336.0,0.0012592]
[1740599860788,0.0602565,84348.0,84333.0,0.0008454]
[1740599860789,0.05943514,84343.0,84333.0,0.0008454]
[1740599861002,0.01454085,84342.0,84333.0,0.0008454]
[1740599861210,0.09319054,84341.0,84333.0,0.0008454]
[1740599861612,0.01862175,84340.0,84333.0,0.0008454]
[1740599861814,0.05991598,84339.0,84333.0,0.0008454]
[1740599862594,0.04249902,84338.0,84333.0,0.0008454]
[1740599862788,0.1854431,84338.0,84333.0,0.0008454]
[1740599863001,0.1902061,84338.0,84333.0,0.0008454]
[1740599863446,0.05922166,84337.0,84333.0,0.0008454]
[1740599866227,0.06622166,84337.0,84333.0,0.0008454]
[1740599869991,0.05922166,84337.0,84333.0,0.0008454]
[1740599870148,0.02494278,84336.0,84333.0,0.0008454]
[1740599870358,0.08459267,84336.0,84335.0,0.0009458]
[1740599872298,0.10321398,84336.0,84335.0,0.0009458]
[1740599873533,0.08459267,84336.0,84335.0,0.0009458]
[1740599873936,0.09913352,84336.0,84335.0,0.0009458]
[1740599875060,0.01454085,84333.0,84332.0,0.00014418]
[1740599875260,0.04440732,84333.0,84332.0,0.00014418]
[1740599875645,0.1043308,84333.0,84332.0,0.00014418]
[1740599876051,0.07367283,84331.0,84302.0,0.0001]
[1740599876256,0.01454085,84329.0,84315.0,0.00097145]
[1740599876451,0.01454085,84327.0,84315.0,0.00097145]
[1740599876672,0.00892855,84300.0,84298.0,0.000846]
[1740599876849,0.19437165,84300.0,84298.0,0.000846]
[1740599877470,0.035739,84299.0,84298.0,0.000846]
[1740599877887,0.01454085,84318.0,84298.0,0.000846]
[1740599878091,0.035738,84306.0,84298.0,0.000846]
[1740599878954,0.03782008,84317.0,84298.0,0.000846]
[1740599879114,0.03782008,84317.0,84299.0,0.09482943]
[1740599879323,0.035734,84316.0,84299.0,0.09482943]
[1740599879494,0.03782008,84317.0,84308.0,0.09482943]
[1740599879738,0.01767242,84316.0,84308.0,0.17112943]
[1740599880414,0.0599745,84320.0,84308.0,0.17112943]
[1740599880544,0.05944641,84325.0,84308.0,0.17112943]
[1740599880944,0.05944641,84325.0,84317.0,0.09482943]
[1740599881151,0.01862346,84321.0,84317.0,0.09482943]
[1740599881785,0.05944641,84325.0,84317.0,0.09482943]
[1740599881989,0.00012381,84326.0,84309.0,0.23892221]
[1740599881990,0.05933522,84323.0,84309.0,0.23892221]
[1740599882211,0.00595702,84324.0,84309.0,0.23892221]
[1740599882212,0.05944641,84325.0,84309.0,0.23892221]
[1740599882412,0.00012381,84326.0,84299.0,0.09482943]
[1740599882413,0.05933522,84323.0,84299.0,0.09482943]
[1740599882727,0.01454085,84320.0,84299.0,0.09482943]
[1740599882926,0.07451535,84320.0,84299.0,0.09482943]
[1740599883135,0.04139348,84319.0,84317.0,0.0008478]
[1740599883994,0.01454085,84318.0,84317.0,0.0008478]
[1740599884198,0.61822629,84318.0,84317.0,0.0008478]
[1740599886346,0.61822629,84318.0,84317.0,6.471e-05]
[1740599886734,0.05979016,84322.0,84317.0,6.471e-05]
[1740599886944,0.0599745,84320.0,84317.0,6.471e-05]
[1740599888612,0.3786029,84320.0,84317.0,6.471e-05]
[1740599888992,0.05911876,84318.0,84317.0,6.471e-05]
[1740599889211,0.37365961,84318.0,84317.0,6.471e-05]
[1740599889837,0.37365961,84318.0,84298.0,0.000846]
[1740599889838,0.02383,84315.0,84298.0,0.000846]
[1740599890014,0.03837085,84310.0,84298.0,0.000846]
[1740599890224,0.01454085,84306.0,84298.0,0.000846]
[1740599890426,0.05971111,84303.0,84298.0,0.000846]
[1740599890644,0.02383,84310.0,84250.0,0.0779476]
[1740599890645,0.37374839,84300.0,84250.0,0.0779476]
[1740599890826,0.05997759,84297.0,84250.0,0.0008476]
[1740599891045,0.03837085,84294.0,84250.0,0.0008476]
[1740599891203,0.05949117,84291.0,84250.0,0.0008476]
[1740599891401,0.01454085,84288.0,84250.0,0.0008476]
[1740599891712,0.05911639,84283.0,84250.0,0.0008476]
[1740599891912,0.01454085,84280.0,84262.0,0.00097197]
[1740599892113,0.01454085,84276.0,84262.0,0.00097197]
[1740599892321,0.01454085,84273.0,84262.0,0.00097197]
[1740599892535,0.05962194,84272.0,84262.0,0.00097197]
[1740599892746,0.05962194,84272.0,84250.0,0.0008476]
[1740599892964,0.05974564,84272.0,84250.0,0.0008476]
[1740599893172,0.05909158,84270.0,84250.0,0.0008476]
[1740599893385,0.35909158,84270.0,84250.0,0.0008476]
[1740599893548,0.35909158,84270.0,84250.0,5e-08]
[1740599893746,0.05909158,84270.0,84260.0,0.37973632]
[1740599893956,0.0001237,84272.0,84260.0,6e-08]
[1740599894131,0.00594573,84271.0,84260.0,6e-08]
[1740599894338,0.0001237,84272.0,84262.0,0.0008482]
[1740599894763,0.05979798,84271.0,84262.0,0.0008482]
[1740599895104,0.05927389,84269.0,84262.0,0.0008482]
[1740599896217,0.01454085,84264.0,84262.0,0.0008482]
[1740599896426,0.07421317,84263.0,84262.0,0.0008482]
[1740599896618,0.41452454,84263.0,84262.0,0.0008482]
[1740599896822,0.05999803,84261.0,84250.0,5e-08]
[1740599898603,0.01930885,84260.0,84250.0,5e-08]
[1740599898808,0.34820939,84260.0,84250.0,5e-08]
[1740599899021,0.05921951,84253.0,84250.0,5e-08]
[1740599899219,0.05988885,84251.0,84250.0,5e-08]
[1740599900515,0.05999659,84259.0,84250.0,5e-08]
[1740599900735,0.05969552,84255.0,84250.0,5e-08]
[1740599900930,0.01454085,84254.0,84250.0,5e-08]
[1740599901137,0.01454085,84252.0,84250.0,5e-08]
[1740599901334,0.02191689,84251.0,84250.0,5e-08]
[1740599901933,0.05928796,84249.0,84221.0,0.07007769]
[1740599902160,0.01454085,84248.0,84221.0,0.07007769]
[1740599902380,0.07382645,84248.0,84221.0,0.07007769]
[1740599903050,0.05962983,84250.0,84223.0,0.09494929]
[1740599903234,0.0592856,84248.0,84223.0,0.09494929]
[1740599903883,0.05910467,84241.0,84221.0,0.07007769]
[1740599904122,0.00670059,84249.0,84203.0,0.23892221]
[1740599904123,0.05940777,84239.0,84203.0,0.28592221]
[1740599904260,0.05940777,84239.0,84207.0,0.02]
[1740599904467,0.0592856,84248.0,84207.0,0.02]
[1740599904670,0.0592856,84248.0,84210.0,0.02]
[1740599904896,0.01454085,84245.0,84203.0,0.28592221]
[1740599905096,0.31454085,84243.0,84211.0,0.082]
[1740599905315,0.01454085,84241.0,84211.0,0.082]
[1740599905711,0.01454085,84239.0,84211.0,0.082]
[1740599906468,0.05915624,84242.0,84223.0,0.0004244]
[1740599906643,0.03950549,84241.0,84223.0,0.0004244]
[1740599907402,0.05915624,84242.0,84223.0,0.0004244]
[1740599908155,0.05970802,84243.0,84215.0,0.0194244]
[1740599908303,0.05970802,84243.0,84213.0,0.0202722]
[1740599908505,0.05970802,84243.0,84213.0,0.0008478]
[1740599908703,0.05926533,84235.0,84213.0,0.0008478]
[1740599909681,0.0005756,84233.0,84213.0,0.0008478]
[1740599909901,0.0005756,84228.0,84213.0,0.0008478]
[1740599910136,0.0005756,84215.0,84213.0,0.0008478]
[1740599910334,0.01511645,84215.0,84213.0,0.0008478]
[1740599910670,0.01864737,84215.0,84213.0,0.0008478]
[1740599910851,0.004771,84214.0,84213.0,0.0008478]
[1740599911492,0.01931185,84214.0,84213.0,0.00126247]
[1740599912023,0.004771,84214.0,84213.0,0.00126247]
[1740599912629,0.04117568,84214.0,84213.0,0.00126247]
[1740599913398,0.05917807,84212.0,84200.0,0.0001]
[1740599913599,0.05917807,84212.0,84200.0,0.0002084]
[1740599914221,0.05950705,84210.0,84200.0,0.0002084]
[1740599914556,0.05950714,84213.0,84201.0,0.0996244]
[1740599914753,0.07916787,84211.0,84200.0,0.0002084]
[1740599915172,0.05974387,84211.0,84200.0,0.0002084]
[1740599915577,0.04626126,84212.0,84201.0,0.09494929]
[1740599915754,0.05974387,84211.0,84201.0,0.09494929]
[1740599915956,0.04626126,84212.0,84201.0,0.09494929]
[1740599915957,0.05926969,84209.0,84201.0,0.09494929]
[1740599916130,0.05926969,84209.0,84203.0,0.0194244]
[1740599916325,0.04352698,84210.0,84206.0,0.0194244]
[1740599916525,0.04352698,84210.0,84207.0,0.0194244]
[1740599916730,0.04352698,84210.0,84208.0,0.0825]
[1740599916941,0.03640468,84209.0,84208.0,0.0825]
[1740599917773,1.0,84214.0,84212.0,0.0194244]
[1740599917982,1.0,84214.0,84213.0,0.11437369]
[1740599919378,1.0,84214.0,84213.0,0.7294959]
[1740599919684,0.8719,84214.0,84213.0,0.81053675]
[1740599919899,0.8219,84214.0,84213.0,0.81053675]
[1740599920190,0.79054276,84214.0,84213.0,0.76523675]
[1740599920413,0.71124276,84214.0,84213.0,1.31303675]
[1740599920935,0.6926,84214.0,84213.0,1.31303675]
[1740599921734,0.6926,84214.0,84213.0,1.29303675]
[1740599921928,0.6926,84214.0,84213.0,0.7494959]
[1740599922288,0.6926,84214.0,84213.0,0.25834661]
[1740599922492,0.76194492,84214.0,84213.0,0.25834661]
[1740599922700,0.75594492,84214.0,84213.0,0.25834661]
[1740599922906,0.6866,84214.0,84213.0,0.25834661]
[1740599923311,0.6866,84214.0,84211.0,0.0194244]
[1740599923547,0.6866,84214.0,84205.0,0.0194244]
[1740599923792,0.6866,84214.0,84203.0,0.23892221]
[1740599923950,0.6866,84214.0,84193.0,0.0194244]
[1740599923951,0.41567767,84214.0,84193.0,0.0194244]
[1740599924147,0.07471608,84213.0,84193.0,0.0194244]
[1740599924342,0.07471608,84213.0,84185.0,0.0194244]
[1740599924541,0.35917807,84212.0,84185.0,0.0194244]
[1740599924747,0.35917807,84212.0,84190.0,0.0194244]
[1740599925165,0.01454085,84211.0,84184.0,0.23892221]
[1740599925546,0.01454085,84211.0,84167.0,0.5478]
[1740599925547,0.01454085,84209.0,84172.0,0.0194244]
[1740599925878,0.05945664,84204.0,84172.0,0.0194244]
[1740599926061,0.31454085,84207.0,84176.0,0.0194244]
[1740599926062,0.05910342,84206.0,84176.0,0.0194244]
[1740599926678,0.019425,84205.0,84176.0,0.0194244]
[1740599927103,0.35945664,84204.0,84176.0,0.0194244]
[1740599927434,0.35945664,84204.0,84167.0,0.01392]
[1740599927435,0.05969922,84202.0,84185.0,0.0194244]
[1740599927604,0.05959605,84203.0,84188.0,0.0194244]
[1740599927907,0.05959605,84203.0,84171.0,0.02]
[1740599928104,0.05959605,84203.0,84179.0,0.0194244]
[1740599928341,0.05959605,84203.0,84171.0,0.02]
[1740599928342,0.05959605,84203.0,84188.0,0.0194244]
[1740599928543,0.05959605,84203.0,84171.0,0.02]
[1740599928687,0.05959605,84203.0,84180.0,0.0194244]
[1740599928870,0.05959605,84203.0,84187.0,0.0194244]
[1740599929860,0.05959605,84203.0,84183.0,0.0194244]
[1740599930117,0.05959605,84203.0,84179.0,0.0194244]
[1740599930738,0.05959605,84203.0,84178.0,0.23892221]
[1740599930945,0.05959605,84203.0,84178.0,0.25834661]
[1740599931448,0.05959605,84203.0,84174.0,0.0194244]
[1740599933283,0.05959605,84203.0,84178.0,0.0194244]
[1740599933870,0.05959605,84203.0,84186.0,0.0194244]
[1740599934054,0.05959605,84203.0,84189.0,0.0194244]
[1740599934458,0.05945664,84204.0,84189.0,0.0194244]
[1740599935233,0.07810689,84204.0,84200.0,4.395e-05]
[1740599935416,0.05945664,84204.0,84200.0,4.395e-05]
[1740599936157,0.05959605,84203.0,84200.0,4.395e-05]
[1740599936369,0.09537805,84203.0,84200.0,4.395e-05]
[1740599938510,0.11402813,84203.0,84200.0,4.395e-05]
[1740599938697,0.09537805,84203.0,84200.0,4.395e-05]
[1740599939099,0.11402825,84203.0,84200.0,4.395e-05]
[1740599939313,0.0125846,84202.0,84200.0,4.395e-05]
[1740599939521,0.05957428,84201.0,84200.0,4.395e-05]
[1740599940268,0.07411513,84201.0,84200.0,4.395e-05]
[1740599940424,0.05957428,84201.0,84200.0,4.395e-05]
[1740599940631,0.05957428,84201.0,84200.0,4.7e-07]
[1740599940828,0.41609099,84201.0,84200.0,4.7e-07]
[1740599941151,0.3,84200.0,84177.0,0.0008482]
[1740599941346,0.05995431,84199.0,84177.0,0.0008482]
[1740599942337,0.0420995,84201.0,84181.0,0.0194244]
[1740599942338,0.05948779,84200.0,84181.0,0.0194244]
[1740599943366,0.05948779,84200.0,84187.0,0.0194244]
[1740599943681,0.05948779,84200.0,84178.0,0.0194244]
[1740599943982,0.02383,84197.0,84177.0,0.0008482]
[1740599944227,0.05990397,84196.0,84177.0,0.0008482]
[1740599945408,0.05948779,84200.0,84177.0,0.0008482]
[1740599945618,0.05948779,84200.0,84184.0,0.00081693]
[1740599945822,0.01865253,84195.0,84184.0,0.00081693]
[1740599945986,0.05906884,84194.0,84181.0,0.00081693]
[1740599946192,0.05906884,84194.0,84184.0,0.00081693]
[1740599946588,0.05906884,84194.0,84187.0,0.00081693]
[1740599946790,0.05906884,84194.0,84190.0,0.00081693]
[1740599946996,0.06909486,84194.0,84190.0,0.00081693]
[1740599947613,0.05906884,84194.0,84193.0,0.00081693]
[1740599947814,0.05906884,84194.0,84190.0,0.00081693]
[1740599948177,0.05906884,84194.0,84185.0,0.00081693]
[1740599948490,0.05906884,84194.0,84174.0,0.00081693]
[1740599948713,0.0592637,84192.0,84179.0,0.00081693]
[1740599948953,0.0592637,84192.0,84181.0,0.00081693]
[1740599949152,0.0592637,84192.0,84174.0,0.00081693]
[1740599949375,0.0592637,84192.0,84181.0,0.00081693]
[1740599950602,0.035788,84191.0,84181.0,0.00081693]
[1740599950755,0.05906962,84190.0,84184.0,0.00081693]
[1740599950964,0.05906962,84190.0,84187.0,0.00081693]
[1740599951181,0.05906962,84190.0,84189.0,0.00081693]
[1740599951382,0.09497814,84191.0,84182.0,0.00081693]
[1740599951580,0.09497814,84191.0,84179.0,0.00081693]
[1740599951783,0.09497814,84191.0,84168.0,0.3]
[1740599951784,0.05965067,84189.0,84188.0,0.00081693]
[1740599951943,0.05965067,84189.0,84182.0,0.00081693]
[1740599952148,0.05965067,84189.0,84181.0,0.00081693]
[1740599953799,0.05965067,84189.0,84185.0,0.00081693]
[1740599954022,0.05965067,84189.0,84188.0,0.00081693]
[1740599954211,0.0592637,84192.0,84188.0,0.00081693]
[1740599954379,0.0592637,84192.0,84189.0,0.00081693]
[1740599954709,0.05919014,84191.0,84178.0,0.00081693]
[1740599954912,0.05919014,84191.0,84173.0,0.00081693]
[1740599955152,0.05919014,84191.0,84166.0,0.00081693]
[1740599955346,0.05965067,84189.0,84166.0,0.00081693]
[1740599955680,0.05965067,84189.0,84181.0,0.00081693]
[1740599955848,0.05965067,84189.0,84165.0,0.0004241]
[1740599956051,0.05965067,84189.0,84177.0,0.0004247]
[1740599956253,0.080785,84193.0,84183.0,0.00081693]
[1740599956254,0.059969,84187.0,84183.0,0.00081693]
[1740599956396,0.0599262,84192.0,84162.0,0.00199719]
[1740599957424,0.0599262,84192.0,84163.0,0.09494929]
[1740599958765,0.0186541,84185.0,84176.0,0.00199719]
[1740599958920,0.00780892,84184.0,84176.0,0.00199719]
[1740599959125,0.03047183,84185.0,84179.0,0.00199719]
[1740599959982,0.01181773,84185.0,84178.0,0.00199719]
[1740599960171,0.01181773,84185.0,84184.0,0.00199719]
[1740599961872,0.01181773,84185.0,84165.0,0.3462]
[1740599962114,0.01181773,84185.0,84170.0,0.01388]
[1740599962294,0.01181773,84185.0,84179.0,0.00199719]
[1740599962515,0.01181773,84185.0,84175.0,0.00199719]
[1740599962684,0.01181773,84185.0,84171.0,0.00199719]
[1740599962884,0.01181773,84185.0,84173.0,0.00199719]
[1740599963085,0.01454085,84212.0,84173.0,0.02]
[1740599963287,0.04043615,84211.0,84173.0,0.02012364]
[1740599963486,0.05954337,84198.0,84173.0,0.02012364]
[1740599964224,0.05904803,84212.0,84173.0,0.02012364]
[1740599964597,0.3,84230.0,84173.0,0.02012364]
[1740599964598,0.035784,84211.0,84173.0,0.02012364]
[1740599964802,0.05962715,84209.0,84173.0,0.02012364]
[1740599965154,0.05962715,84209.0,84176.0,0.02]
[1740599965609,0.01865187,84201.0,84176.0,0.02]
[1740599965820,0.05960577,84200.0,84176.0,0.02]
[1740599966185,0.0826,84193.0,84173.0,0.00012364]
[1740599966343,0.08298123,84192.0,84173.0,0.00012364]
[1740599966709,0.05990694,84198.0,84173.0,0.00012364]
[1740599968362,0.05990694,84198.0,84174.0,0.02]
[1740599968559,0.05990694,84198.0,84173.0,0.00012364]
[1740599968760,0.06075374,84198.0,84173.0,0.00012364]
[1740599969541,0.05908837,84197.0,84180.0,0.02]
[1740599969709,0.05982036,84195.0,84180.0,0.02]
[1740599970110,0.05923561,84192.0,84180.0,0.02]
[1740599970342,0.05923561,84192.0,84173.0,0.02012364]
[1740599971111,0.05923561,84192.0,84173.0,0.00012364]
[1740599971914,0.0008468,84198.0,84182.0,0.3827]
[1740599971915,0.05908837,84197.0,84182.0,0.3827]
[1740599972126,0.06508189,84197.0,84182.0,0.3827]
[1740599972368,0.05908837,84197.0,84182.0,0.3827]
[1740599973126,0.05908837,84197.0,84182.0,0.02]
[1740599973812,0.05908837,84197.0,84176.0,0.3]
[1740599974390,0.01865306,84192.0,84173.0,0.00012364]
[1740599975183,0.05987297,84191.0,84173.0,0.00012364]
[1740599975387,0.01865306,84192.0,84173.0,0.00012364]
[1740599975388,0.05949777,84189.0,84173.0,0.00012364]
[1740599975594,0.0473,84188.0,84173.0,0.00012364]
[1740599975954,0.05958911,84187.0,84173.0,0.00012364]
[1740599976154,0.05958911,84187.0,84160.0,0.25337525]
[1740599976358,0.05971337,84187.0,84160.0,0.25337525]
[1740599976690,0.01270134,84186.0,84160.0,0.25337525]
[1740599976890,0.01865459,84181.0,84160.0,0.25337525]
[1740599977291,0.01865459,84181.0,84159.0,0.0803]
[1740599981301,0.01865459,84181.0,84161.0,0.3]
[1740599981502,0.01865459,84181.0,84162.0,0.01620409]
[1740599981909,0.01865459,84181.0,84162.0,0.01454085]
[1740599982112,0.01865459,84181.0,84170.0,0.31454085]
[1740599982316,0.01865459,84181.0,84169.0,0.09494929]
[1740599982317,0.00012426,84187.0,84180.0,0.39774085]
[1740599982512,0.00012426,84187.0,84182.0,0.01454085]
[1740599984539,0.00012426,84187.0,84184.0,0.01454085]
[1740599984746,0.00012426,84187.0,84185.0,0.00166274]
[1740599984947,0.00012426,84187.0,84186.0,0.01454085]
[1740599985374,0.00012426,84187.0,84186.0,0.0016627]
[1740599985959,0.00012426,84187.0,84182.0,0.01620351]
[1740599986671,0.01864878,84186.0,84182.0,0.01454085]
[1740599986870,0.01864878,84186.0,84181.0,0.01384]
[1740599986997,0.00012426,84187.0,84181.0,0.01384]
[1740599987987,0.00012426,84187.0,84166.0,0.3]
[1740599987988,0.05971337,84187.0,84166.0,0.3]
[1740599988187,0.00597134,84186.0,84164.0,0.01384]
[1740599988955,0.01779534,84186.0,84164.0,0.01384]
[1740599989727,0.01865359,84181.0,84164.0,0.01384]
[1740599990052,0.0484,84180.0,84164.0,0.01384]
[1740599990307,0.0484,84180.0,84159.0,0.0004231]
[1740599990512,0.01451536,84179.0,84159.0,0.0004231]
[1740599990847,0.01865359,84181.0,84159.0,0.0004231]
[1740599992406,0.01865359,84181.0,84163.0,0.01454085]
[1740599993047,0.01779534,84186.0,84163.0,0.01454085]
[1740599994589,0.01779534,84186.0,84161.0,0.01454085]
[1740599994789,0.00775087,84185.0,84161.0,0.01454085]
[1740599995031,0.00775087,84185.0,84162.0,0.0004234]
[1740599995763,0.011824,84186.0,84161.0,0.02]
[1740599997092,0.011824,84186.0,84160.0,0.0809]
[1740599997838,0.011824,84186.0,84161.0,0.0138]
[1740599999290,0.011824,84186.0,84160.0,0.0809]
[1740599999491,0.011824,84186.0,84161.0,0.0138]
[1740599999712,0.01519374,84185.0,84161.0,0.0138]
[1740600000314,0.011824,84186.0,84161.0,0.0138]
[1740600000691,0.011824,84186.0,84176.0,0.09494929]
[1740600000873,0.00012426,84187.0,84178.0,0.3]
[1740600001322,0.00012426,84187.0,84178.0,0.295]
[1740600001563,0.01454085,84213.0,84178.0,0.295]
[1740600001780,0.02547551,84212.0,84179.0,0.39902493]
[1740600002106,0.00012432,84213.0,84180.0,0.8751]
[1740600002511,0.00012432,84213.0,84181.0,0.01546284]
[1740600002751,0.09494929,84212.0,84180.0,0.8751]
[1740600002950,0.09494929,84203.0,84181.0,0.0138]
[1740600003130,0.09494929,84203.0,84182.0,0.3273]
[1740600003331,0.00949493,84202.0,84182.0,0.3273]
[1740600004107,0.09494929,84203.0,84182.0,0.3273]
[1740600004108,0.0815,84211.0,84183.0,0.3]
[1740600004756,0.00012432,84213.0,84188.0,0.02]
[1740600004913,0.00012432,84213.0,84189.0,0.01454085]
[1740600005128,0.00012432,84213.0,84189.0,0.03620338]
[1740600006013,0.00012432,84213.0,84198.0,0.01454085]
[1740600006332,0.00012432,84213.0,84200.0,0.31454085]
[1740600006666,0.00012432,84213.0,84205.0,0.31454085]
[1740600006801,0.00012432,84213.0,84207.0,0.01454085]
[1740600006981,0.00012432,84213.0,84208.0,0.8751]
[1740600007186,0.00012432,84213.0,84212.0,0.03454085]
[1740600007422,0.00012432,84213.0,84212.0,1.29054085]
[1740600007638,0.00012432,84213.0,84212.0,1.41574085]
[1740600007832,0.5,84226.0,84214.0,0.59212149]
[1740600008078,0.5,84226.0,84214.0,0.61212149]
[1740600008195,0.5,84226.0,84214.0,0.50146234]
[1740600008400,0.5,84226.0,84214.0,0.6153193]